bitfinex-derivatives/quotes_BNBF0:USTF0_20250715
["timestamp","ask_amount","ask_price","bid_price","bid_amount"]
[1752620381719,0.97606642,691.29,690.86,0.97025259]
[1752620383922,0.97606642,691.28,690.87,0.97025259]
[1752620385522,0.97606642,691.27,690.87,0.97025259]
[1752620385825,0.97606642,691.28,690.87,0.97025259]
[1752620387628,0.97606642,691.27,690.87,0.97025259]
[1752620388128,0.97606642,691.28,690.87,0.97025259]
[1752620388429,0.97606642,691.27,690.87,0.97025259]
[1752620389332,0.97606642,691.27,690.88,0.97025259]
[1752620389932,0.97606642,691.26,690.88,0.97025259]
[1752620391533,0.97606642,691.26,690.65,1.9379678]
[1752620391534,0.97606642,691.28,690.87,0.97025259]
[1752620392436,0.97606642,691.29,690.86,0.97025259]
[1752620395737,0.97606642,691.28,690.87,0.97025259]
[1752620400635,0.97606642,691.33,690.84,0.97025259]
[1752620401642,0.97606642,691.25,690.77,0.97025259]
[1752620401837,0.97606642,691.25,690.76,0.97025259]
[1752620402041,0.97606642,691.29,690.74,0.97025259]
[1752620408353,1.3017248,691.48,690.76,0.97025259]
[1752620408354,0.97606642,691.26,690.76,0.97025259]
[1752620409753,0.97606642,691.2,690.81,0.97025259]
[1752620409955,0.97606642,691.24,690.81,0.97025259]
[1752620410250,0.97606642,691.24,690.8,0.97025259]
[1752620412154,0.97606642,691.26,690.8,0.97025259]
[1752620412349,0.97606642,691.29,690.81,0.97025259]
[1752620412554,0.97606642,691.29,690.82,0.97025259]
[1752620412949,0.97606642,691.29,690.81,0.97025259]
[1752620414253,0.97606642,691.3,690.81,0.97025259]
[1752620414654,0.25174613,691.67,690.76,0.97025259]
[1752620414655,0.97606642,691.38,690.76,0.97025259]
[1752620414863,0.97606642,691.47,690.86,0.97025259]
[1752620415157,0.97606642,691.48,690.86,0.97025259]
[1752620415455,0.97606642,691.51,690.84,0.97025259]
[1752620415657,0.97606642,691.44,690.89,0.97025259]
[1752620415853,0.97606642,691.45,690.89,0.97025259]
[1752620416053,0.97606642,691.45,690.9,0.97025259]
[1752620416253,0.97606642,691.47,690.89,0.97025259]
[1752620417057,0.97606642,691.47,690.88,0.97025259]
[1752620417354,0.97606642,691.48,690.87,0.97025259]
[1752620418255,0.97606642,691.52,690.85,0.97025259]
[1752620418459,0.97606642,691.53,690.85,0.97025259]
[1752620418660,0.97606642,691.53,690.86,0.97025259]
[1752620418856,0.97606642,691.55,690.85,0.97025259]
[1752620419161,0.97606642,691.59,690.82,0.97025259]
[1752620419460,0.97606642,691.56,690.85,0.97025259]
[1752620419660,0.97606642,691.55,690.87,0.97025259]
[1752620419860,0.97606642,691.49,690.91,0.97025259]
[1752620420057,0.97606642,691.51,690.89,0.97025259]
[1752620421060,0.97606642,691.51,690.9,0.97025259]
[1752620421258,0.97606642,691.65,691.03,0.97025259]
[1752620421463,0.97606642,691.66,691.02,0.97025259]
[1752620421662,0.97606642,691.65,691.04,0.97025259]
[1752620422162,0.97606642,691.77,691.07,0.97025259]
[1752620422364,0.97606642,691.8,691.05,0.97025259]
[1752620422563,0.97606642,691.91,691.04,0.97025259]
[1752620422961,3.2386521,692.86,690.54,0.25175705]
[1752620422962,0.97606642,692.01,690.98,0.97025259]
[1752620423166,0.97606642,692.09,691.01,0.97025259]
[1752620423464,0.97606642,692.02,691.13,0.97025259]
[1752620423664,3.2386521,693.76,691.17,0.97025259]
[1752620423665,0.97606642,692.06,691.17,0.97025259]
[1752620423861,0.97606642,692.38,691.49,0.97025259]
[1752620424061,0.97606642,692.19,691.3,0.97025259]
[1752620424363,0.97606642,692.22,691.22,0.97025259]
[1752620424565,0.97606642,692.13,691.15,0.97025259]
[1752620424762,0.97606642,692.21,691.24,0.97025259]
[1752620424961,0.25146416,692.51,690.93,0.25146416]
[1752620424962,0.97606642,692.18,691.31,0.97025259]
[1752620425165,0.97606642,692.19,691.33,0.97025259]
[1752620425366,0.97606642,692.22,691.28,0.97025259]
[1752620425565,0.97606642,692.15,691.19,0.97025259]
[1752620425762,0.97606642,692.15,691.18,0.97025259]
[1752620425963,0.97606642,692.16,691.18,0.97025259]
[1752620426167,0.97606642,692.29,691.23,0.97025259]
[1752620426463,0.97606642,692.35,691.31,0.97025259]
[1752620426665,0.97606642,692.33,691.29,0.97025259]
[1752620427064,0.97606642,692.31,691.28,0.97025259]
[1752620427262,0.97606642,692.41,691.19,0.97025259]
[1752620427566,0.97606642,692.43,691.21,0.97025259]
[1752620427966,0.97606642,692.43,691.02,1.2934502]
[1752620427967,0.97606642,692.41,691.22,0.97025259]
[1752620428168,0.97606642,692.38,691.13,0.97025259]
[1752620428368,0.97606642,692.46,691.23,0.97025259]
[1752620428669,0.97606642,692.37,691.28,0.97025259]
[1752620428868,0.97606642,692.38,691.28,0.97025259]
[1752620429065,0.97606642,692.4,691.26,0.97025259]
[1752620429268,0.97606642,692.43,691.22,0.97025259]
[1752620429466,0.97606642,692.44,691.24,0.97025259]
[1752620429669,0.25146416,692.51,690.93,0.25146416]
[1752620429670,0.97606642,692.48,691.19,0.97025259]
[1752620429866,0.97606642,692.47,691.19,0.97025259]
[1752620430167,0.97606642,692.47,691.2,0.97025259]
[1752620430369,0.97606642,692.49,691.17,0.97025259]
[1752620430765,0.97606642,692.43,691.21,0.97025259]
[1752620430966,0.97606642,692.43,690.93,0.25146416]
[1752620430967,0.97606642,692.4,691.23,0.97025259]
[1752620431165,0.97606642,692.43,691.2,0.97025259]
[1752620431367,0.97606642,692.44,691.2,0.97025259]
[1752620431565,0.97606642,692.44,690.95,1.9379678]
[1752620431566,0.97606642,692.48,691.21,0.56729664]
[1752620431769,0.97606642,692.48,691.22,0.56729664]
[1752620431968,0.97606642,692.5,691.23,0.56729664]
[1752620432172,0.25146416,692.51,691.24,0.56729664]
[1752620432372,0.25146416,692.51,691.25,0.56729664]
[1752620432574,0.25146416,692.51,691.26,0.56660053]
[1752620432772,0.25146416,692.51,691.27,0.56660053]
[1752620432972,0.25146416,692.51,691.28,0.56660053]
[1752620433168,0.25146416,692.51,691.29,0.56660053]
[1752620433372,0.25146416,692.51,691.3,0.56636263]
[1752620433675,0.25146416,692.51,691.31,0.56636263]
[1752620433970,0.97606642,692.49,691.32,0.56636263]
[1752620434168,0.97606642,692.5,691.33,0.56636263]
[1752620434370,1.22753058,692.51,691.34,0.56636263]
[1752620434573,1.22753058,692.51,691.35,0.56636263]
[1752620434770,1.22753058,692.51,691.36,0.56636263]
[1752620434974,0.97606642,692.49,691.37,0.56636263]
[1752620435276,0.97606642,692.5,691.38,0.56636263]
[1752620435469,0.25146416,692.51,691.39,0.56636263]
[1752620435668,0.25146416,692.51,691.4,0.56636263]
[1752620435869,0.25146416,692.51,691.41,0.56636263]
[1752620436174,0.25146416,692.51,691.42,0.56636263]
[1752620436371,0.25146416,692.51,691.43,0.56636263]
[1752620436575,0.25146416,692.51,691.44,0.56636263]
[1752620436772,0.25146416,692.51,691.45,0.56636263]
[1752620436971,0.25146416,692.51,691.46,0.56636263]
[1752620437173,0.25146416,692.51,690.93,0.25146416]
[1752620437174,0.25146416,692.51,691.47,0.56636263]
[1752620437375,0.25146416,692.51,691.48,0.56636263]
[1752620437670,0.25146416,692.51,691.49,0.56636263]
[1752620437872,0.25146416,692.51,691.03,0.97025259]
[1752620437873,0.25146416,692.51,691.5,0.56636263]
[1752620438070,0.25146416,692.51,691.51,0.56636263]
[1752620438275,0.25146416,692.51,691.52,0.56636263]
[1752620438476,0.25146416,692.51,691.53,0.56636263]
[1752620438672,0.25146416,692.51,691.54,0.56636263]
[1752620438884,0.25146416,692.51,691.55,0.56636263]
[1752620439087,0.25146416,692.51,691.56,0.56636263]
[1752620439291,0.25146416,692.51,691.57,0.56636263]
[1752620439490,0.97606642,692.75,691.58,0.56636263]
[1752620439783,0.25136971,692.64,691.59,0.56636263]
[1752620439989,0.25136971,692.64,691.6,0.56636263]
[1752620440186,0.25136971,692.64,691.61,0.56636263]
[1752620440487,0.25136971,692.64,691.62,0.56636263]
[1752620440690,0.25136971,692.64,691.63,0.56636263]
[1752620440984,0.25136971,692.64,691.64,0.56636263]
[1752620441195,0.25136971,692.64,691.14,0.97025259]
[1752620441391,0.25136971,692.64,691.15,1.53301489]
[1752620441585,0.25136971,692.64,691.16,0.5627623]
[1752620442185,0.25136971,692.64,691.14,0.97025259]
[1752620443086,0.25136971,692.64,691.15,0.97025259]
[1752620443295,0.25136971,692.64,691.14,0.97025259]
[1752620444189,0.25136971,692.64,691.13,0.97025259]
[1752620445392,0.25136971,692.64,691.14,0.97025259]
[1752620445600,0.25136971,692.64,691.16,0.97025259]
[1752620446693,0.25136971,692.64,691.17,0.97025259]
[1752620446895,0.25136971,692.64,691.18,0.97025259]
[1752620447292,0.25136971,692.64,691.17,0.97025259]
[1752620447497,0.25136971,692.64,691.18,0.56143598]
[1752620447693,0.25136971,692.64,691.19,0.56143598]
[1752620447893,0.25136971,692.64,691.2,0.56143598]
[1752620448094,0.25136971,692.64,691.21,0.56143598]
[1752620448294,0.25136971,692.64,691.22,0.56143598]
[1752620448596,0.25136971,692.64,691.23,0.56143598]
[1752620448794,0.25136971,692.64,691.24,0.56143598]
[1752620448994,0.25136971,692.64,691.25,0.56143598]
[1752620449299,0.25136971,692.64,691.26,0.56131066]
[1752620449497,0.25136971,692.64,691.27,0.56131066]
[1752620449701,0.25136971,692.64,691.28,0.56131066]
[1752620450006,0.97606642,692.94,691.29,0.56131066]
[1752620450199,0.97606642,692.94,691.3,0.56131066]
[1752620450497,0.25136608,692.73,691.31,0.56131066]
[1752620450697,0.25136608,692.73,691.32,0.56131066]
[1752620450898,0.25136608,692.73,691.33,0.56131066]
[1752620451103,0.25136608,692.73,691.34,0.56131066]
[1752620451397,0.25136608,692.73,691.14,0.97025259]
[1752620451398,0.25136608,692.73,691.35,0.56131066]
[1752620451599,0.25136608,692.73,691.36,0.56131066]
[1752620451798,0.25136608,692.73,690.93,1.54491436]
[1752620451799,0.25136608,692.73,691.37,0.56131066]
[1752620452099,0.25136608,692.73,691.38,0.56131066]
[1752620452294,0.25136608,692.73,691.39,0.56131066]
[1752620452505,0.25136608,692.73,691.4,0.56131066]
[1752620452707,0.25136608,692.73,691.41,0.56131066]
[1752620452997,0.25136608,692.73,691.42,0.56131066]
[1752620453201,0.25136608,692.73,691.12,0.97025259]
[1752620453202,0.97606642,693.06,691.43,0.56131066]
[1752620453496,0.25132433,692.8,691.44,0.56131066]
[1752620453700,0.25132433,692.8,691.45,0.56131066]
[1752620453896,0.25132433,692.8,691.46,0.56131066]
[1752620454100,0.25132433,692.8,691.47,0.56131066]
[1752620454404,0.25132433,692.8,691.48,0.56131066]
[1752620454601,0.25132433,692.8,691.49,0.56131066]
[1752620454796,0.25132433,692.8,691.5,0.56131066]
[1752620455008,0.25132433,692.8,691.15,0.97025259]
[1752620455198,0.25132433,692.8,691.16,0.56093543]
[1752620455398,0.25132433,692.8,691.17,0.56093543]
[1752620455598,0.25132433,692.8,691.15,0.97025259]
[1752620455902,0.25132433,692.8,691.16,0.56092136]
[1752620456097,0.25132433,692.8,691.17,0.56092136]
[1752620456301,0.25132433,692.8,691.18,0.56092136]
[1752620456501,0.25132433,692.8,691.19,0.56092136]
[1752620456702,0.25132433,692.8,691.2,0.56092136]
[1752620456903,0.25132433,692.8,691.21,0.56092136]
[1752620457202,0.25132433,692.8,691.22,0.56092136]
[1752620457401,0.25132433,692.8,691.23,0.56092136]
[1752620457598,0.25132433,692.8,691.24,0.56092136]
[1752620457800,0.25132433,692.8,691.25,0.56092136]
[1752620458099,0.25132433,692.8,691.26,0.56091249]
[1752620458299,0.25132433,692.8,691.27,0.56091249]
[1752620458499,0.25132433,692.8,691.15,0.97025259]
[1752620458500,0.25132433,692.8,691.28,0.56091249]
[1752620458803,0.25132433,692.8,691.29,0.56091249]
[1752620459098,0.25132433,692.8,691.3,0.56091249]
[1752620459397,0.25132433,692.8,691.31,0.56091249]
[1752620459701,0.25132433,692.8,691.32,0.56091249]
[1752620459901,0.25132433,692.8,691.33,0.56091249]
[1752620460102,0.25132433,692.8,691.34,0.56091249]
[1752620460300,0.25132433,692.8,691.35,0.56091249]
[1752620460599,0.25132433,692.8,691.36,0.56091249]
[1752620460898,0.25132433,692.8,691.37,0.56091249]
[1752620461202,0.25132433,692.8,691.38,0.56091249]
[1752620461399,0.25132433,692.8,691.39,0.56091249]
[1752620461598,0.25132433,692.8,691.4,0.56091249]
[1752620461901,0.25132433,692.8,691.41,0.56091249]
[1752620462102,0.25132433,692.8,691.42,0.56091249]
[1752620462300,0.25132433,692.8,691.43,0.56091249]
[1752620462604,0.25132433,692.8,691.44,0.56091249]
[1752620462806,0.25132433,692.8,691.2,0.97025259]
[1752620463021,0.25132433,692.8,691.21,0.53514307]
[1752620463208,0.25132433,692.8,691.22,0.53514307]
[1752620463506,0.25132433,692.8,691.23,0.53517293]
[1752620463706,0.25132433,692.8,691.24,0.53517293]
[1752620463902,0.25132433,692.8,691.25,0.53517293]
[1752620464102,0.25132433,692.8,691.26,0.53517293]
[1752620464403,0.25132433,692.8,691.27,0.53517293]
[1752620464604,0.25132433,692.8,691.28,0.53517293]
[1752620464804,0.25132433,692.8,691.29,0.53517293]
[1752620465005,0.25132433,692.8,691.3,0.53517293]
[1752620465201,0.25132433,692.8,691.31,0.53517293]
[1752620465405,0.25132433,692.8,691.22,0.97025259]
[1752620465406,0.25132433,692.8,691.32,0.53517293]
[1752620465603,0.25132433,692.8,691.33,0.53517293]
[1752620465803,0.25132433,692.8,691.34,0.53517293]
[1752620466002,0.25132433,692.8,691.35,0.53517293]
[1752620466304,0.25132433,692.8,691.36,0.53517293]
[1752620466506,0.25132433,692.8,691.37,0.53517293]
[1752620466709,0.25132433,692.8,691.24,0.97025259]
[1752620466904,0.25132433,692.8,691.25,0.53533397]
[1752620467108,0.25132433,692.8,691.26,0.53533397]
[1752620467307,0.25132433,692.8,690.93,0.25146416]
[1752620467308,0.25132433,692.8,691.27,1.50558656]
[1752620467508,0.25132433,692.8,691.28,0.53533397]
[1752620467705,0.25132433,692.8,691.29,0.53533397]
[1752620468009,0.25132433,692.8,691.3,0.53533397]
[1752620468309,0.25132433,692.8,691.31,0.53533397]
[1752620468506,0.25132433,692.8,691.32,0.53533397]
[1752620468708,0.25132433,692.8,691.33,0.53533397]
[1752620468909,0.25132433,692.8,691.34,0.53533397]
[1752620469111,0.25132433,692.8,691.35,0.53533397]
[1752620469413,0.25132433,692.8,691.36,0.53533397]
[1752620469611,0.25132433,692.8,691.37,0.53533397]
[1752620469807,0.25132433,692.8,691.38,0.53533397]
[1752620470006,0.25132433,692.8,691.3,0.97025259]
[1752620470007,0.25132433,692.8,691.39,0.53533397]
[1752620470308,0.25132433,692.8,691.4,0.53533397]
[1752620470608,0.25132433,692.8,691.41,0.53533397]
[1752620470808,0.25132433,692.8,691.42,0.53533397]
[1752620471107,0.25132433,692.8,691.43,0.53533397]
[1752620471307,0.25132433,692.8,691.44,0.53533397]
[1752620471511,0.25132433,692.8,691.45,0.53533397]
[1752620471708,0.25132433,692.8,691.46,0.53589331]
[1752620472011,0.25132433,692.8,691.47,0.53589331]
[1752620472212,0.25132433,692.8,691.48,0.5358754]
[1752620472411,0.25132433,692.8,691.49,0.5358754]
[1752620472609,0.25132433,692.8,691.5,0.5358754]
[1752620472808,0.25132433,692.8,691.51,0.5358754]
[1752620473011,0.25132433,692.8,691.52,0.5358754]
[1752620473208,0.25132433,692.8,691.53,0.5358754]
[1752620473507,0.25132433,692.8,691.54,0.5358754]
[1752620473711,0.25132433,692.8,691.55,0.5358754]
[1752620473913,0.25132433,692.8,691.56,0.5358754]
[1752620474109,0.25132433,692.8,691.57,0.5358754]
[1752620474411,0.25132433,692.8,691.58,0.5358754]
[1752620474609,0.25132433,692.8,691.39,0.97025259]
[1752620474810,0.25132433,692.8,691.4,0.53652786]
[1752620475007,0.25132433,692.8,691.41,0.53652786]
[1752620475211,0.25132433,692.8,691.42,0.53652786]
[1752620475412,0.25132433,692.8,691.43,0.53652786]
[1752620475609,0.25132433,692.8,691.44,0.53652786]
[1752620475808,0.25132433,692.8,691.45,0.53652786]
[1752620476013,0.25132433,692.8,691.46,0.53652786]
[1752620476209,0.25132433,692.8,691.47,0.53652786]
[1752620476413,0.25132433,692.8,691.48,0.53652786]
[1752620476612,0.25132433,692.8,691.49,0.53652786]
[1752620476813,0.25132433,692.8,691.5,0.53652786]
[1752620477114,0.25132433,692.8,691.51,0.53652786]
[1752620477309,0.25132433,692.8,691.52,0.53652786]
[1752620477509,0.25132433,692.8,691.53,0.53652786]
[1752620477709,0.97606642,692.84,691.54,0.53652786]
[1752620477914,0.97606642,692.86,691.55,0.53652786]
[1752620478110,0.97606642,692.86,691.56,0.53652786]
[1752620478310,0.97606642,692.83,691.57,0.53652786]
[1752620478609,0.97606642,692.83,691.58,0.53652786]
[1752620478809,0.97606642,692.85,691.59,0.53652786]
[1752620479010,0.97606642,692.85,691.6,0.53652786]
[1752620479210,0.97606642,692.82,691.61,0.53652786]
[1752620479414,0.97606642,692.82,691.62,0.53652786]
[1752620479615,0.97606642,692.82,691.63,0.53812223]
[1752620479814,0.97606642,692.85,691.64,0.53812223]
[1752620480117,0.97606642,692.85,691.65,0.53812223]
[1752620480313,0.97606642,692.81,691.66,0.53812223]
[1752620480519,0.97606642,692.77,691.67,0.538414]
[1752620480817,0.97606642,692.77,691.62,0.97025259]
[1752620480818,0.97606642,692.76,691.68,0.538414]
[1752620481018,0.97606642,692.76,691.69,0.538414]
[1752620481317,0.97606642,692.73,691.7,0.538414]
[1752620481617,0.97606642,692.73,691.71,0.538414]
[1752620481817,0.97606642,692.73,691.72,0.538414]
[1752620482014,0.97606642,692.73,691.73,0.538414]
[1752620482217,0.97606642,692.68,691.74,0.538414]
[1752620482413,0.97606642,692.67,691.75,0.538414]
[1752620482615,0.97606642,692.66,691.76,0.538414]
[1752620482818,0.97606642,692.66,691.77,0.538414]
[1752620483118,0.97606642,692.67,691.78,1.50866659]
[1752620483420,0.97606642,692.65,691.81,0.97025259]
[1752620483620,0.97606642,692.65,691.82,0.538414]
[1752620483920,0.97606642,692.65,691.83,0.538414]
[1752620484120,0.97606642,692.65,691.84,0.538414]
[1752620484320,0.97606642,692.64,691.85,0.538414]
[1752620484518,0.97606642,692.65,691.86,0.538414]
[1752620484716,0.97606642,692.65,691.87,0.538414]
[1752620485016,0.97606642,692.67,691.88,0.538414]
[1752620485218,0.97606642,692.67,691.89,0.538414]
[1752620485418,0.97606642,692.66,691.9,0.538414]
[1752620485616,0.97606642,692.72,691.91,0.538414]
[1752620485923,0.97606642,692.72,691.92,0.538414]
[1752620486116,0.97606642,692.73,691.93,0.538414]
[1752620486322,0.97606642,692.72,691.94,0.538414]
[1752620486516,0.97606642,692.72,691.95,0.538414]
[1752620486716,0.97606642,692.72,691.96,0.538414]
[1752620486917,0.97606642,692.73,691.97,0.538414]
[1752620487116,0.97606642,692.73,691.98,0.538414]
[1752620487316,0.97606642,692.73,691.99,0.538414]
[1752620487516,0.97606642,692.72,692.0,0.538414]
[1752620487718,0.97606642,692.72,692.01,0.538414]
[1752620487918,0.97606642,692.72,692.02,0.538414]
[1752620488120,0.97606642,692.72,692.03,0.538414]
[1752620488417,0.97606642,692.72,692.04,0.538414]
[1752620488618,0.97606642,692.72,692.05,0.538414]
[1752620488815,0.97606642,692.72,692.06,0.538414]
[1752620489018,0.97606642,692.72,692.07,0.538414]
[1752620489215,0.97606642,692.72,692.08,0.54156341]
[1752620489520,0.97606642,692.72,692.09,0.54156341]
[1752620489718,0.97606642,692.72,692.1,0.54156341]
[1752620490019,0.97606642,692.72,692.11,0.54170412]
[1752620490322,0.97606642,692.72,691.03,3.2299463]
[1752620490323,0.97606642,692.71,692.12,0.54182817]
[1752620490520,0.97606642,692.71,691.91,0.97025259]
[1752620490720,0.97606642,692.71,691.92,0.54182754]
[1752620490918,0.97606642,692.71,691.93,0.54182754]
[1752620491123,0.97606642,692.69,691.94,0.54182754]
[1752620491419,0.97606642,692.72,691.95,0.54182754]
[1752620491620,0.97606642,692.72,691.88,0.97025259]
[1752620493219,0.97606642,692.72,690.91,3.2299463]
[1752620493220,0.97606642,692.72,691.89,0.97025259]
[1752620494822,0.97606642,692.72,691.9,0.97025259]
[1752620495031,0.97606642,692.71,691.89,0.97025259]
[1752620495224,0.97606642,692.72,691.89,0.97025259]
[1752620495424,0.97606642,692.71,691.9,0.97025259]
[1752620495724,0.97606642,692.72,691.9,0.97025259]
[1752620496126,0.97606642,692.71,691.9,0.97025259]
[1752620496325,0.97606642,692.71,691.91,0.97025259]
[1752620497325,0.97606642,692.71,690.93,3.48141046]
[1752620497326,0.97606642,692.71,691.93,0.97025259]
[1752620497525,0.97606642,692.71,691.92,0.97025259]
[1752620497728,0.97606642,692.71,691.93,0.97025259]
[1752620498024,0.97606642,692.71,691.61,1.9379678]
[1752620498025,0.97606642,692.71,691.92,0.97025259]
[1752620498228,0.97606642,692.7,691.93,0.97025259]
[1752620499127,0.97606642,692.71,691.93,0.97025259]
[1752620499329,0.97606642,692.7,691.94,0.97025259]
[1752620501228,0.97606642,692.68,691.96,0.97025259]
[1752620502131,0.97606642,692.67,691.96,0.97025259]
[1752620502334,0.97606642,692.67,691.97,0.97025259]
[1752620502738,0.97606642,692.68,691.96,0.97025259]
[1752620504241,0.97606642,692.66,691.97,0.97025259]
[1752620504637,0.25126626,693.03,691.95,0.97025259]
[1752620504638,0.97606642,692.69,691.95,0.97025259]
[1752620505135,0.97606642,692.73,691.93,0.97025259]
[1752620507241,0.97606642,692.73,691.94,0.97025259]
[1752620507436,0.97606642,692.74,691.94,0.97025259]
[1752620508244,0.97606642,692.73,691.95,0.97025259]
[1752620509245,0.97606642,692.72,691.95,0.97025259]
[1752620509441,0.97606642,692.72,691.96,0.97025259]
[1752620509744,0.97606642,692.74,691.99,0.97025259]
[1752620510040,0.97606642,692.75,691.98,0.97025259]
[1752620510343,0.97606642,692.75,691.99,0.97025259]
[1752620510542,0.97606642,692.71,692.02,0.97025259]
[1752620510940,0.97606642,692.74,692.04,0.97025259]
[1752620511143,0.97606642,692.73,692.05,0.97025259]
[1752620511544,0.97606642,692.74,692.05,0.97025259]
[1752620512344,0.97606642,692.75,692.03,0.97025259]
[1752620513143,0.97606642,692.76,692.03,0.97025259]
[1752620515944,0.97606642,692.79,692.06,0.97025259]
[1752620516447,0.97606642,692.81,692.07,0.97025259]
[1752620519148,0.97606642,692.82,692.07,0.97025259]
[1752620519346,0.97606642,692.81,692.07,0.97025259]
[1752620519645,0.97606642,692.8,692.07,0.97025259]
[1752620520047,0.25126626,693.03,692.07,0.97025259]
[1752620520048,0.97606642,692.81,692.07,0.97025259]
[1752620520748,0.97606642,692.8,692.07,0.97025259]
[1752620520949,0.97606642,692.77,692.09,0.97025259]
[1752620521150,0.97606642,692.78,692.11,0.97025259]
[1752620521752,0.97606642,692.81,692.12,0.53630851]
[1752620521949,0.97606642,692.81,692.13,0.53630851]
[1752620522250,0.97606642,692.81,692.14,0.53630851]
[1752620522449,0.97606642,692.81,692.15,0.53630851]
[1752620522647,0.97606642,692.82,692.16,0.53630851]
[1752620522851,0.97606642,692.82,692.1,0.97025259]
[1752620523049,0.97606642,692.82,692.11,0.53619513]
[1752620523247,0.97606642,692.82,692.12,0.53619513]
[1752620523451,0.97606642,692.82,692.13,0.53619513]
[1752620523651,0.97606642,692.82,692.14,0.53619513]
[1752620523854,0.97606642,692.84,692.15,0.53619513]
[1752620524054,0.97606642,692.88,692.16,0.53619513]
[1752620524253,0.97606642,692.88,692.17,0.53619513]
[1752620524449,0.97606642,692.88,692.18,0.53619513]
[1752620524654,0.97606642,692.88,692.19,0.53619513]
[1752620524854,0.97606642,692.88,692.2,0.53619513]
[1752620525054,0.97606642,692.88,692.21,0.53619513]
[1752620525255,0.97606642,692.88,692.22,0.53619513]
[1752620525452,0.97606642,692.88,692.23,0.53619513]
[1752620525653,0.97606642,692.88,692.24,0.53619513]
[1752620525949,0.97606642,692.88,692.25,0.53619513]
[1752620526148,0.97606642,692.87,692.26,0.53619513]
[1752620526351,0.97606642,692.87,692.27,0.53619513]
[1752620526551,0.97606642,692.96,692.28,0.53619513]
[1752620526756,0.97606642,692.96,692.29,0.53619513]
[1752620526956,0.97606642,692.96,692.3,0.53619513]
[1752620527156,0.97606642,692.96,692.31,0.53619513]
[1752620527355,0.97606642,692.96,692.32,0.53619513]
[1752620527554,0.97606642,692.96,692.33,0.53619513]
[1752620527753,0.97606642,692.96,692.34,0.53619513]
[1752620527959,0.97606642,692.96,692.35,0.53619513]
[1752620528160,0.97606642,692.96,692.36,0.53619513]
[1752620528357,0.97606642,692.96,692.37,0.53619513]
[1752620528560,0.97606642,692.96,692.38,0.53619513]
[1752620528761,0.97606642,692.96,692.39,0.53619513]
[1752620529057,0.97606642,692.95,692.4,0.53619513]
[1752620529261,0.25123089,693.11,690.61,3.2299463]
[1752620529262,0.97606642,692.94,692.41,0.53619513]
[1752620529461,0.97606642,692.94,692.42,0.53619513]
[1752620529662,0.97606642,692.94,692.43,0.53619513]
[1752620529858,0.97606642,692.94,692.44,0.53619513]
[1752620530060,0.97606642,692.94,692.45,0.53619513]
[1752620530357,0.97606642,692.91,692.46,0.53619513]
[1752620530559,0.97606642,692.94,692.47,0.53619513]
[1752620530858,0.97606642,692.94,692.48,0.53619513]
[1752620531057,0.97606642,692.94,692.49,0.53619513]
[1752620531258,0.97606642,692.94,692.06,0.97025259]
[1752620531459,0.97606642,692.98,692.11,0.97025259]
[1752620531662,0.97606642,692.98,692.12,0.53554955]
[1752620531959,0.97606642,692.98,692.13,0.53554955]
[1752620532157,0.97606642,692.98,692.14,0.53554955]
[1752620532359,0.97606642,692.98,692.15,0.53554955]
[1752620532558,0.97606642,692.98,692.16,0.53554955]
[1752620532758,0.97606642,692.98,692.17,0.53554955]
[1752620532964,0.97606642,692.98,692.18,0.53554955]
[1752620533162,0.97606642,692.98,692.19,0.53554955]
[1752620533361,0.97606642,692.98,692.2,0.53554955]
[1752620533662,0.97606642,692.98,692.21,0.53554955]
[1752620533861,0.25123089,693.11,692.22,0.53554955]
[1752620534062,0.97112174,692.98,692.23,0.53554955]
[1752620534360,0.97112174,692.93,692.24,0.53554955]
[1752620534565,0.97112174,692.93,692.25,0.53554955]
[1752620534765,0.97112174,692.84,692.26,0.53554955]
[1752620534962,0.97112174,692.84,692.27,0.53554955]
[1752620535166,0.97112174,692.84,692.28,0.53554955]
[1752620535361,0.97112174,692.85,692.29,0.53554955]
[1752620535566,0.97112174,692.85,692.3,0.53554955]
[1752620535763,0.97112174,692.85,692.12,0.96207368]
[1752620535764,0.97112174,692.85,692.31,0.53554955]
[1752620535968,0.97112174,692.84,692.32,0.53554955]
[1752620536164,0.97112174,692.84,692.12,0.96207368]
[1752620536368,0.97112174,692.84,692.13,0.53571438]
[1752620536563,0.97112174,692.84,692.14,0.53571438]
[1752620536767,0.97112174,692.82,692.15,0.53571438]
[1752620537064,0.97112174,692.82,692.16,0.53571438]
[1752620537268,0.97112174,692.82,692.17,0.53571438]
[1752620537470,0.97112174,692.81,692.18,0.53571438]
[1752620537669,0.97112174,692.81,692.19,0.53571438]
[1752620537873,0.97112174,692.8,692.2,0.53571438]
[1752620538075,0.97112174,692.8,692.21,0.53571438]
[1752620538269,0.97112174,692.8,692.22,0.53571438]
[1752620538475,0.97112174,692.8,692.23,0.53571438]
[1752620538675,0.97112174,692.8,692.24,0.53571438]
[1752620538871,0.97112174,692.8,692.25,0.53571438]
[1752620539174,0.97112174,692.81,692.26,0.53571438]
[1752620539371,0.97112174,692.81,692.27,0.53571438]
[1752620539671,0.97112174,692.81,692.28,0.53571438]
[1752620539874,0.97112174,692.81,692.29,0.53571438]